Cogmind - Beta 9.2 @@@ ROGUE MODE // 2019.11.24 @ 23:41:50 Player: Judas Result: Destroyed by G-34 Mercenary with Backup Laser I Performance ------------- Evolutions (1) 500 Regions Visited (4) 800 Robots Destroyed (16) 80 Value Destroyed (406) 406 Prototype IDs (1) 20 Alien Tech Used (0) 0 Bonus (0) 0 TOTAL SCORE: 1806 Bonus ------- None Cogmind --------- Core Integrity 0/400 Matter 207/300 Energy 100/100 System Corruption 0% Temperature Cool (9) Movement Core (600) Ox11 Location -9/Storage Parts ------- > --- POWER (1) -------- (None) > --- PROPULSION (2) --- (None) > --- UTILITY (2) ------ High-capacity Storage Unit Advanced Signal Interpreter > --- WEAPON (4) ------- Heavy Mace > --- INVENTORY (12) --- Aluminum Leg Small Matter Pod (50) Visual Processing Unit Signal Interpreter Grenade Launcher Heavy Mace Heavy Mace Peak State ------------ > --- POWER ------------ Light Ion Engine > --- PROPULSION ------- Wheel Compact Wheel > --- UTILITY ---------- High-capacity Storage Unit Experimental Sensor Array > --- WEAPON ----------- Heavy Mace Heavy Mace Heavy Mace Heavy Mace > --- INVENTORY -------- Light Ion Engine Aluminum Leg Aluminum Leg Small Matter Pod Visual Processing Unit Signal Interpreter Advanced Signal Interpreter Heavy Assault Rifle Heavy Assault Rifle Grenade Launcher [Rating: 23] Favorites ----------- Power Light Ion Engine Engine Light Ion Engine Propulsion Wheel Leg Aluminum Leg Wheel Wheel Utility High-capacity Storage Unit Device Sensor Array Storage High-capacity Storage Unit Processor Advanced Signal Interpreter Weapon Heavy Mace Energy Gun Heavy EM Pulse Gun Ballistic Gun Light Assault Rifle Impact Weapon Heavy Mace Slashing Weapon Mining Claw Build | -11 -10 -10 -9 -9 ------- Run | Scr Mat Min Mat Sto Slots Evolved 2 | . . . 2 . Power . | . . . . . Propulsion . | . . . . . Utility . | . . . . . Weapon 2 | . . . 2 . Parts Attached 27 | 6 5 . 12 4 Power 3 | 1 . . 2 . Engine 3 | 1 . . 2 . Core . | . . . . . Reactor . | . . . . . Propulsion 5 | 2 . . 3 . Treads . | . . . . . Leg 2 | . . . 2 . Wheel 3 | 2 . . 1 . Hover . | . . . . . Flight . | . . . . . Utility 7 | 1 4 . 1 1 Device 2 | . 1 . 1 . Storage 3 | 1 2 . . . Processor 2 | . 1 . . 1 Hackware . | . . . . . Protection . | . . . . . Artifact . | . . . . . Weapon 12 | 2 1 . 6 3 Energy Gun 2 | 1 1 . . . Energy Cannon . | . . . . . Ballistic Gun 5 | 1 . . 2 2 Ballistic Cannon . | . . . . . Launcher . | . . . . . Special Weapon . | . . . . . Impact Weapon 4 | . . . 4 . Slashing Weapon 1 | . . . . 1 Piercing Weapon . | . . . . . Special Melee Weapon . | . . . . . Unidentified Prototypes 1 | . . . 1 . Parts Lost 13 | . . . 7 6 Power 2 | . . . 1 1 Propulsion 4 | . . . 2 2 Utility 2 | . . . 2 . Weapon 5 | . . . 2 3 Highest Loss Streak 5 | . . . 3 5 Average Slot Usage (%) 91 | . 97 100 90 77 Engine 11 | . 14 14 10 7 Leg 3 | . . . 3 14 Wheel 17 | . 28 28 15 . Device 7 | . 3 14 10 . Storage 12 | . 14 14 11 11 Processor 3 | . 7 . . 11 Energy Gun 6 | . 14 14 1 . Ballistic Gun 10 | . 14 14 8 8 Impact Weapon 15 | . . . 29 21 Naked Turns . | . . . . . Heaviest Build 48 | 9 40 40 48 46 Greatest Support 26 | 26 26 26 26 20 Greatest Overweight (x) 13 | . 1 1 4 13 Average Overweight (x) 1 | . . 1 1 3 Largest Inventory Capacity 12 | 6 12 12 12 12 Average Capacity 10 | 5 6 12 12 12 Most Carried 12 | 6 9 9 12 7 Average Carried 8 | 3 6 8 10 7 Final Capacity 12 | 6 12 12 12 12 Final Carried 9 | 6 8 9 8 7 Class Distribution -------------------- 92% | Mutant 7% | Skirmisher Dominant Class ---------------- Mutant | -10/Materials Mutant | -10/Mines Mutant | -9/Materials Mutant | -9/Storage Resources | -11 -10 -10 -9 -9 ----------- Run | Scr Mat Min Mat Sto Matter Collected 539 | 186 122 11 220 . Remotely . | . . . . . Salvage Created 604 | . 161 . 401 42 Parts 31 | . 9 . 22 . Haulers Intercepted . | . . . . . Recyclers Shooed . | . . . . . Parts Field Recycled . | . . . . . Retrieved Matter . | . . . . . Parts Self-Destructed . | . . . . . Prevented . | . . . . . Kills | -11 -10 -10 -9 -9 ------- Run | Scr Mat Min Mat Sto Combat Hostiles Destroyed 13 | . 2 . 10 1 Melee 3 | . . . 3 . Guns 6 | . 2 . 3 1 AOE 2 | . . . 2 . Classes Destroyed 5 | . 3 . 2 . Recycler 2 | . 1 . 1 . Watcher 1 | . 1 . . . Swarmer 4 | . . . 4 . Grunt 7 | . 2 . 4 1 Sentry 2 | . . . 2 . Best Kill Streak 6 | . 2 . 6 1 Combat Bots Only 5 | . 2 . 5 1 Max Kills in Single Turn 2 | . 1 . 2 1 Gunslinging 1 | . . . 1 . Exploded 2 | . . . 2 . Melee 1 | . . . 1 . Uniques/NPCs Destroyed . | . . . . . Combat | -11 -10 -10 -9 -9 -------- Run | Scr Mat Min Mat Sto Damage Taken 1477 | . 59 . 802 616 Core 408 | . . . 194 214 Absorbed by Shields . | . . . . . Core Remaining (%) 100 | 100 . 100 . . Volleys Fired 32 | . 8 1 10 13 Largest 4 | . 2 2 4 2 Hottest 111 | . 65 65 111 46 Shots Fired 80 | . 16 2 36 26 Gun 80 | . 16 2 36 26 Cannon . | . . . . . Launcher . | . . . . . Special . | . . . . . Kinetic 65 | . 8 1 30 26 Thermal . | . . . . . Explosive . | . . . . . Electromagnetic 15 | . 8 1 6 . Robot Hit Streak 10 | . 10 . 7 6 Robot Miss Streak 4 | . 1 . 3 4 Penetration Max . | . . . . . Secondary Targets 1 | . . . 1 . Max Gunslinging Chain 1 | . . . 1 . Shots Hit Robots 77 | . 13 . 41 23 Core Hits 21 | . 6 . 13 2 Critical Hits . | . . . . . Critical Kills . | . . . . . Critical Parts Destroyed . | . . . . . Melee Attacks 58 | . . . 54 4 Impact 58 | . . . 54 4 Slashing . | . . . . . Piercing . | . . . . . Sneak Attacks . | . . . . . Combat Hostiles . | . . . . . Follow-up Attacks 11 | . . . 11 . Damage Inflicted 1465 | . 189 . 881 395 Guns 656 | . 164 . 207 285 Cannons . | . . . . . Explosions 83 | . 25 . 58 . Melee 726 | . . . 616 110 Ramming . | . . . . . Kinetic 461 | . 36 . 140 285 Thermal 83 | . 25 . 58 . Explosive . | . . . . . Electromagnetic 195 | . 128 . 67 . Impact 726 | . . . 616 110 Slashing . | . . . . . Piercing . | . . . . . Highest Corruption . | . . . . . Average Corruption . | . . . . . Corruption Purged . | . . . . . Overload Shots . | . . . . . Overflow Damage 42 | . . . 42 . Projectiles . | . . . . . Explosions 9 | . . . 9 . Melee 33 | . . . 33 . Knockbacks 8 | . . . 7 1 Impact 7 | . . . 6 1 Kinetic . | . . . . . Secondary 1 | . . . 1 . Self-Inflicted Damage 63 | . 28 . 35 . Shots 2 | . 1 . 1 . Rammed . | . . . . . Targets Rammed . | . . . . . Kicked . | . . . . . Crushed . | . . . . . Highest Temperature 199 | . 78 24 199 4 Average Temperature 56 | . 36 13 91 4 Received Heat Transfer 720 | . 18 . 288 414 Siege Activations . | . . . . . Robots Corrupted . | . . . . . Combat Hostiles . | . . . . . Parts Fried 2 | . 1 . 1 . Impact Corruptions 4 | . . . 4 . Robots Melted . | . . . . . Combat Hostiles . | . . . . . Parts Melted . | . . . . . Heat Transferred 150 | . 50 . 100 . Parts Sabotaged . | . . . . . Parts Stolen . | . . . . . Parts Stripped . | . . . . . Power Chain Reactions 2 | . 1 . 1 . Missiles Intercepted . | . . . . . Alert | -11 -10 -10 -9 -9 ------- Run | Scr Mat Min Mat Sto Peak Influence 264 | . 92 35 264 48 Average Influence 78 | . 41 35 147 39 Maximum Alert Level 1 | . . . 1 . Low Security (%) 87 | 100 100 100 67 100 Level 1 12 | . . . 32 . Level 2 . | . . . . . Level 3 . | . . . . . Level 4 . | . . . . . Level 5 . | . . . . . High Security . | . . . . . Max Security . | . . . . . Squads Dispatched 3 | . 1 . 1 1 Investigation 1 | . . . 1 . Extermination . | . . . . . Reinforcement 2 | . 1 . . 1 Assault . | . . . . . Garrison . | . . . . . Intercept . | . . . . . Construction Impeded . | . . . . . Haulers Reinforced . | . . . . . Stealth | -11 -10 -10 -9 -9 --------- Run | Scr Mat Min Mat Sto Distress Signals 3 | . . . 3 . Communications Jammed . | . . . . . Distress Signals . | . . . . . Times Spotted 31 | . 5 . 21 5 Peak Tracking Total 7 | . 2 . 7 4 Tactical Retreats 3 | . 1 . 2 . Traps | -11 -10 -10 -9 -9 ------- Run | Scr Mat Min Mat Sto Traps Triggered . | . . . . . Indirectly . | . . . . . Trap Hack Attempts . | . . . . . Triggered . | . . . . . Disarmed . | . . . . . Reprogrammed . | . . . . . Reused . | . . . . . Traps Extracted . | . . . . . Installed . | . . . . . Triggered . | . . . . . Machines | -11 -10 -10 -9 -9 ---------- Run | Scr Mat Min Mat Sto Machines Disabled 1 | . . . 1 . Max in Single Turn 1 | . . . 1 . Machines Sabotaged . | . . . . . Garrisons Compromised . | . . . . . Overloaded Fab Kills . | . . . . . Fab Network Shutdowns . | . . . . . Hacking | -11 -10 -10 -9 -9 --------- Run | Scr Mat Min Mat Sto Machines Accessed 7 | . . . 4 3 Terminals 6 | . . . 3 3 Fabricators . | . . . . . Repair Stations . | . . . . . Recycling Units . | . . . . . Scanalyzers 1 | . . . 1 . Garrison Access . | . . . . . Total Hacks 19 | . . . 11 8 Successful 6 | . . . 5 1 Failed 13 | . . . 6 7 Catastrophic . | . . . . . Database Lockouts . | . . . . . Manual 8 | . . . 5 3 Terminals 18 | . . . 10 8 Fabricators . | . . . . . Repair Stations . | . . . . . Recycling Units . | . . . . . Scanalyzers 1 | . . . 1 . Garrison Access . | . . . . . Terminal Hacks 2 | . . . 1 1 Open Door 1 | . . . . 1 Branch Access Points 1 | . . . 1 . Fabricator Hacks . | . . . . . Repair Station Hacks . | . . . . . Recycling Unit Hacks . | . . . . . Scanalyzer . | . . . . . Garrison Access Hacks . | . . . . . Unauthorized Hacks 11 | . . . 9 2 Terminals 3 | . . . 3 . Botnet 3 | . . . 3 . Fabricators . | . . . . . Repair Stations . | . . . . . Recycling Units . | . . . . . Scanalyzers 1 | . . . 1 . Extract 1 | . . . 1 . Garrison Access . | . . . . . Data Cores Recovered . | . . . . . Used . | . . . . . Hacking Detections 4 | . . . 3 1 Full Trace Events 1 | . . . 1 . Feedback Events . | . . . . . Feedback Blocked . | . . . . . Robot Schematics Acquired . | . . . . . Robots Built . | . . . . . Matter . | . . . . . Time . | . . . . . Total Robot Build Rating . | . . . . . Part Schematics Acquired 2 | . . . 2 . Parts Built . | . . . . . Matter . | . . . . . Time . | . . . . . Total Part Build Rating . | . . . . . Parts Repaired . | . . . . . Time . | . . . . . Parts Recycled . | . . . . . Recycled Matter . | . . . . . Retrieved Matter . | . . . . . Retrieved Components . | . . . . . Parts Scanalyzed . | . . . . . Part Schematics Acquired . | . . . . . Parts Damaged . | . . . . . Bothacking | -11 -10 -10 -9 -9 ------------ Run | Scr Mat Min Mat Sto Used RIF Installer . | . . . . . Robots Hacked . | . . . . . Non-combat . | . . . . . Combat . | . . . . . Robot Hacks Applied . | . . . . . Relay Couplers Released . | . . . . . Robots Rewired . | . . . . . Allies Hacked . | . . . . . Hacks Repelled . | . . . . . Allies | -11 -10 -10 -9 -9 -------- Run | Scr Mat Min Mat Sto Total Allies . | . . . . . Largest Group . | . . . . . Highest-Rated Group . | . . . . . Highest-Rated Ally . | . . . . . Total Orders . | . . . . . Ally Attacks . | . . . . . Total Damage . | . . . . . Kills . | . . . . . Allies Corrupted . | . . . . . Allies Melted . | . . . . . Intel | -11 -10 -10 -9 -9 ------- Run | Scr Mat Min Mat Sto Robot Analysis Total . | . . . . . Derelict Logs Recovered 2 | . . 2 . . Drone Launches . | . . . . . Drone Recoveries . | . . . . . Exploration | -11 -10 -10 -9 -9 ------------- Run | Scr Mat Min Mat Sto Turns Passed 1260 | 67 249 247 488 209 Spaces Moved 814 | 59 190 233 273 59 Core 12 | 2 . . . 10 Treads . | . . . . . Legs 73 | . . . 24 49 Wheels 729 | 57 190 233 249 . Hover . | . . . . . Flight . | . . . . . Fastest Speed 50 | 50 90 100 100 180 Average Speed 112 | 88 90 100 111 262 Slowest Speed 700 | 90 100 100 180 700 Overloaded Moves . | . . . . . Propulsion Burnouts . | . . . . . Robots Hopped . | . . . . . Cave-ins Triggered . | . . . . . Exploration Rate (%) 26 | 4 38 54 28 10 Regions Visited 4 Branch Regions 2 Pre-discovered Areas . | . . . . . Known Exits Taken 2 | . . 1 1 . Unknown Exits Taken 2 | 1 1 . . . Scrap Searched 1 | . . 1 . . Spaces Dug 14 | . . . 14 . Terrain Destroyed 21 | . 2 . 19 . Melee 14 | . . . 14 . Projectile . | . . . . . AOE 7 | . 2 . 5 . Actions | -11 -10 -10 -9 -9 --------- Run | Scr Mat Min Mat Sto Total 1004 | 71 254 245 354 80 Wait 64 | . 40 11 13 . Move 810 | 58 189 232 272 59 Hop . | . . . . . Pick Up 18 | 7 5 1 5 . Fast Attach 13 | 5 3 . 4 1 Attach 8 | 1 . . 6 1 Detach 2 | . . . 2 . Swap 6 | . 2 . 2 2 Drop 12 | . 7 . 5 . Fire 32 | . 8 1 10 13 Melee 39 | . . . 35 4 Ram . | . . . . . Kick . | . . . . . Crush . | . . . . . Escape Stasis . | . . . . . Rewire . | . . . . . Trap . | . . . . . Miscellaneous . | . . . . . Route ------- -11/Scrapyard -10/Materials -10/Mines (discovered 2 exits: *Mat x2) -9/Materials (discovered 3 exits: *Min / *Sto x2) -9/Storage History --------- Turn | Location | Event 19 | -11/Scrapyard | Discovered new exit (range 15) 68 | -11/Scrapyard | Entered Materials 266 | -10/Materials | Discovered new exit (range 11) 306 | -10/Materials | Build established: Mutant 317 | -10/Materials | Entered Mines 373 | -10/Mines | Learned Materials non-interactive machine intel 523 | -10/Mines | Found a damaged Exp. Sensor Array with a note attached 531 | -10/Mines | Identified exit to Materials 537 | -10/Mines | Found Prototype Device 559 | -10/Mines | Discovered exit to Materials (range 6) 564 | -10/Mines | Entered Materials 564 | -9/Materials | Evolved 2 slots: Weapon x2 565 | -9/Materials | Loaded intel: 37 non-interactive machine locations 697 | -9/Materials | Discovered new exit (range 15) 699 | -9/Materials | Identified exit to Mines 699 | -9/Materials | Identified exit to Storage 812 | -9/Materials | Identified Exp. Sensor Array 1052 | -9/Materials | Entered Storage 1076 | -9/Storage | Lost 3 parts (1p1u1w) 1139 | -9/Storage | Core integrity fell below 50% 1178 | -9/Storage | Core integrity fell below 20% 1252 | -9/Storage | Lost 5 parts (1p2n2w) 1261 | -9/Storage | Destroyed by G-34 Mercenary with Backup Laser I Last Messages --------------- 01056_ O-16 Technician: "IFF HANDSHAKE FAILED. SECURING TERMINAL." 01056_ ALERT: Hostiles spotted, dispatching reinforcements to Terminal S006. 01070_ Connecting with Terminal... >>Open Sealed Heavy Doors opened. 01127_ Acquired Mining Claw. 01152_ G-34 Mercenary knocked back. 01178_ U-05 Engineer builds a Door. 01183_ Aluminum Leg destroyed. 01185_ Destroyed Sml. Laser. 01186_ Mining Claw destroyed. 01192_ Lgt. Ion Engine destroyed. 01194_ Aluminum Leg destroyed. 01194_ Destroyed Sml. Laser. 01194_ G-34 Mercenary destroyed. 01221_ Hvy. Assault Rifle destroyed. 01243_ K-01 Serf collects debris. 01257_ Hvy. Assault Rifle destroyed. 01259_ K-01 Serf collects debris. Map ----- +----------------------------------------------------+ | ?????????????????????????????????????????????????? | | ?????????????????????????????????????????????????? | | ?????????????????????????????????????????????????? | | ?????????????????????????????????????????????????? | | ?????????????????????????????????????????????????? | | ?????????????????????????????????????????????????? | | ?????????????????????????????????????????????????? | | ?????????????????????????????????????????????????? | | ?????????????????????????????????????????????????? | | ?????????????????????????????????????????????????? | | ?????????????????????????????????????????????????? | | ?????????????????????????????????????????????????? | | ???????????????????????? ????????????????????????? | | ???????????????????????# ???????????????????????? | | ???????????????????????# ???????????????????????? | | ???????????????????????/ ???????????????????????? | | ???????????????????????# ???????????????????????? | | ???????????????????????# ???????????????????????? | | ???????????????????????# ??????????#????????????? | | ???????????????????????+ ????????? ###??????????? | | ??????????????????#+#####+######?? ??????????? | | ??????????????????# # #? ???????????? | | ??????????????##### + # ?????????????? | | ??????????????#= + # % + ???????????????? | | ??????????????###T# # g k#+##??????????????? | | ????????????????### # m@ #?????????????????? | | ??????????????????# # !! #?????????????????? | | ??????????????????# # !#?????????????????? | | ??????????????????# # #?????????????????? | | ??????????????????# #= =#?????????????????? | | ?########/######### ##########?????????????????? | | ?# T#?????????????????????????? | | ?# ##?????????????????????????? | | ?# #??????????????????????????? | | ?###########T##########??????????????????????????? | | ???????????###???????????????????????????????????? | | ?????????????????????????????????????????????????? | | ?????????????????????????????????????????????????? | | | | | | | | | | | | | | | | | | | | | | | | | +----------------------------------------------------+ Best States ------------- Heat Dissipation 28 Energy Generation 10 Energy Capacity 125 Matter Stores 300 Matter Capacity 300 Sight Range 16 Robot Scan Range 30 Terrain Scan Density 85 Evasion (%) 42 Item Schematics ----------------- Rocket Launcher | -9/Materials | Extracted Med. Matter Pod | -9/Materials | Extracted Robot Schematics ------------------ None Fabricated ------------ Nothing Alien Tech Used ----------------- None Achievements -------------- None Challenges ------------ None Game ------ Seed OverloadAccelerationJammer Manual? 0 Play Time 00:20:13 Cumulative 19.2 hours Start 2019.11.24 @ 23:23:23 End 2019.11.24 @ 23:41:50 Sessions 1 Manual Loads 0 Difficulty Rogue Special Mode None Game No. 40 Rogue 40 Adventurer 0 Explorer 0 Win Type - Total 0 Types 0/0/0/0/0/0/0 Lore% 10 Gallery% 23 Achievement% 18 Wizard Run 0 Options --------- ASCII 0 Keyboard 0 Movement Mouse Keybinds 0 Fullscreen 1 Font 18/SmallcapsGlow Map View 76x50 Tactical HUD 1 Map Filters NONE Filters NONE Steam 1 RUN: 33714ab1-95ec-41a9-814c-97d03445cc0d